bitfinex/quotes_SOLUSD_20250604
["timestamp","ask_amount","ask_price","bid_price","bid_amount"]
[1749008088505,14.30339243,156.85,156.84,49.94]
[1749008093739,14.30339243,156.85,156.84,39.52]
[1749008094045,14.30339243,156.85,156.81,10.42]
[1749008094352,26.0,156.81,156.78,10.42]
[1749008094537,14.30339243,156.79,156.78,10.42]
[1749008095446,26.0,156.78,156.74,10.42]
[1749008095742,14.30339243,156.75,156.74,10.42]
[1749008096035,14.30339243,156.75,156.74,49.94]
[1749008096237,14.30339243,156.75,156.74,10.42]
[1749008096434,14.30339243,156.75,156.74,49.94]
[1749008106557,26.0,156.79,156.74,68.58964886]
[1749008106857,14.30339243,156.75,156.74,68.58964886]
[1749008108665,1.575,156.84,156.75,18.64964886]
[1749008108854,6.0747,156.86,156.75,18.64964886]
[1749008108855,14.30339243,156.8,156.76,14.58771557]
[1749008109031,14.30339243,156.8,156.78,18.64964886]
[1749008109769,1.5816,156.88,156.78,41.10624129]
[1749008110057,14.30339243,156.82,156.79,0.28432314]
[1749008110274,15.88499243,156.88,156.8,49.92]
[1749008110275,14.30339243,156.81,156.8,49.92]
[1749008111874,14.30339243,156.82,156.81,18.64964886]
[1749008112749,14.30339243,156.83,156.81,18.64964886]
[1749008113137,14.30339243,156.84,156.81,18.64964886]
[1749008113459,14.30339243,156.85,156.81,18.64964886]
[1749008114165,14.30339243,156.84,156.81,18.64964886]
[1749008114665,14.30339243,156.85,156.81,18.64964886]
[1749008114958,14.30339243,156.85,156.81,32.95304129]
[1749008115267,26.0,156.91,156.81,32.95304129]
[1749008115562,14.30339243,156.85,156.81,32.95304129]
[1749008116430,14.30339243,156.84,156.81,18.64964886]
[1749008118142,14.30339243,156.85,156.81,32.95304129]
[1749008118347,14.30339243,156.85,156.81,18.64964886]
[1749008118846,14.30339243,156.82,156.81,18.64964886]
[1749008119150,14.30339243,156.88,156.81,18.64964886]
[1749008119151,14.30339243,156.83,156.81,18.64964886]
[1749008119459,14.30339243,156.84,156.81,18.64964886]
[1749008120452,14.30339243,156.84,156.82,39.5]
[1749008121349,14.30339243,156.84,156.83,39.5]
[1749008127168,14.30339243,156.84,156.83,49.9]
[1749008128761,14.30339243,156.88,156.83,49.9]
[1749008128959,14.30339243,156.84,156.83,49.9]
[1749008130460,14.30339243,156.86,156.84,18.64964886]
[1749008130675,26.0,156.91,156.84,18.64964886]
[1749008130855,14.30339243,156.86,156.84,18.64964886]
[1749008132273,14.30339243,156.88,156.84,18.64964886]
[1749008132486,14.30339243,156.89,156.84,32.95304129]
[1749008132985,14.30339243,156.88,156.84,18.64964886]
[1749008133150,26.0,156.91,156.84,18.64964886]
[1749008133151,14.30339243,156.86,156.84,18.64964886]
[1749008133673,14.30339243,156.87,156.84,18.64964886]
[1749008135271,14.30339243,156.88,156.84,18.64964886]
[1749008135478,14.30339243,156.87,156.84,18.64964886]
[1749008137661,14.30339243,156.86,156.84,18.64964886]
[1749008137869,14.30339243,156.85,156.84,18.64964886]
[1749008138081,14.30339243,156.86,156.84,58.10964886]
[1749008141481,14.30339243,156.85,156.84,58.10964886]
[1749008141687,14.30339243,156.85,156.84,68.48964886]
[1749008145672,26.0,156.91,156.84,68.48964886]
[1749008145872,14.30339243,156.86,156.84,68.48964886]
[1749008147286,26.0,156.91,156.84,68.48964886]
[1749008147467,14.30339243,156.86,156.84,68.48964886]
[1749008147969,14.30339243,156.87,156.84,68.48964886]
[1749008152683,26.0,156.91,156.84,68.48964886]
[1749008152684,14.30339243,156.86,156.84,68.48964886]
[1749008154077,14.30339243,156.87,156.85,0.28432314]
[1749008154277,1.5178,156.96,156.87,0.28432314]
[1749008154572,14.30339243,156.91,156.89,18.64964886]
[1749008154778,15.82119243,156.96,156.9,10.38]
[1749008154779,14.30339243,156.92,156.9,10.38]
[1749008155208,14.30339243,156.92,156.91,18.64964886]
[1749008155492,14.30339243,156.93,156.91,18.64964886]
[1749008155699,27.5178,156.96,156.91,18.64964886]
[1749008155700,14.30339243,156.92,156.91,18.64964886]
[1749008155880,14.30339243,156.92,156.91,58.08964886]
[1749008159993,14.30339243,156.92,156.91,39.44]
[1749008163913,14.24339243,156.92,156.91,39.44]
[1749008165890,14.24339243,156.92,156.9,10.38]
[1749008166096,14.30339243,156.91,156.9,10.38]
[1749008166297,14.30339243,156.91,156.9,49.8]
[1749008167013,5.16291271,156.96,156.9,49.8]
[1749008167198,14.30339243,156.91,156.9,49.8]
[1749008167401,14.30339243,156.91,156.9,68.44964886]
[1749008170616,3.64549685,156.99,156.91,18.64964886]
[1749008170815,1.6015,157.0,156.92,0.28432314]
[1749008170816,14.30339243,156.96,156.92,0.28432314]
[1749008171730,14.30339243,156.95,156.92,0.28432314]
[1749008172037,14.30339243,156.93,156.9,10.38]
[1749008172201,14.30339243,156.96,156.9,10.38]
[1749008172202,14.30339243,156.91,156.9,10.38]
[1749008172397,14.30339243,156.91,156.9,49.8]
[1749008172918,14.30339243,156.91,156.9,10.38]
[1749008173118,14.30339243,156.91,156.9,49.8]
[1749008174301,14.30339243,156.91,156.9,68.44964886]
[1749008175210,14.30339243,156.91,156.9,49.8]
[1749008175541,32.5975,156.97,156.9,68.44964886]
[1749008175707,14.30339243,156.91,156.9,68.44964886]
[1749008178820,14.30339243,156.96,156.9,68.44964886]
[1749008179324,14.30339243,156.92,156.91,18.64964886]
[1749008189232,14.30339243,156.93,156.91,18.64964886]
[1749008189525,14.30339243,156.94,156.91,18.64964886]
[1749008190036,14.30339243,156.93,156.91,18.64964886]
[1749008191429,1.5464,156.98,156.92,0.28432314]
[1749008191638,14.30339243,156.95,156.92,0.42648471]
[1749008194541,14.30339243,156.95,156.93,18.64964886]
[1749008194832,14.30339243,156.95,156.94,39.38]
[1749008195533,14.30339243,156.95,156.94,58.02964886]
[1749008197925,14.30339243,156.95,156.94,49.72]
[1749008202832,1.6184,156.97,156.94,49.72]
[1749008203043,14.30339243,156.95,156.94,49.72]
[1749008206818,1.6184,156.97,156.94,49.72]
[1749008207044,26.0,156.99,156.94,49.72]
[1749008207245,3.65375069,157.0,156.95,18.64964886]
[1749008207246,14.30339243,156.97,156.95,18.64964886]
[1749008209746,14.30339243,156.96,156.95,18.64964886]
[1749008210124,14.30339243,156.96,156.94,10.34]
[1749008210328,31.22761258,157.01,156.94,10.34]
[1749008210329,14.30339243,156.95,156.94,10.34]
[1749008210531,14.30339243,156.95,156.94,49.7]
[1749008216754,14.30339243,156.95,156.94,10.34]
[1749008217052,14.30339243,156.95,156.94,49.7]
[1749008217736,14.30339243,156.95,156.94,10.34]
[1749008217937,14.30339243,156.95,156.94,49.7]
[1749008220936,14.30339243,156.95,156.94,10.34]
[1749008221144,14.30339243,156.95,156.94,49.7]
[1749008223051,14.30339243,156.95,156.94,10.34]
[1749008223357,17.96109481,156.95,156.93,10.34]
[1749008223559,17.9617092,156.94,156.85,161.68209729]
[1749008223760,14.30339243,156.86,156.85,15.68209729]
[1749008223975,14.30339243,156.86,156.85,34.33174615]
[1749008224341,14.30339243,156.86,156.85,18.64964886]
[1749008224558,14.30339243,156.86,156.85,58.00964886]
[1749008224937,14.30339243,156.86,156.85,18.64964886]
[1749008225160,14.30339243,156.86,156.8,22.31169243]
[1749008225161,14.30339243,156.86,156.8,8.0083]
[1749008225468,14.30339243,156.82,156.81,68.77613357]
[1749008225676,14.30339243,156.82,156.81,28.98964886]
[1749008225844,14.30339243,156.82,156.81,10.34]
[1749008226036,14.30339243,156.82,156.81,28.98964886]
[1749008226237,14.30339243,156.82,156.81,10.34]
[1749008226646,14.30339243,156.82,156.81,49.7]
[1749008229134,14.30339243,156.82,156.81,10.34]
[1749008229654,14.30339243,156.82,156.81,49.7]
[1749008230170,14.30339243,156.82,156.81,10.34]
[1749008230367,14.30339243,156.82,156.81,49.7]
[1749008232860,14.30339243,156.82,156.81,10.34]
[1749008233046,14.30339243,156.82,156.81,49.7]
[1749008236844,14.30339243,156.83,156.82,18.64964886]
[1749008237459,14.30339243,156.83,156.81,49.7]
[1749008237654,14.30339243,156.82,156.81,68.34964886]
[1749008238876,41.86909243,156.88,156.82,18.64964886]
[1749008239078,14.30339243,156.83,156.82,18.64964886]
[1749008243074,14.30339243,156.84,156.82,18.79181043]
[1749008243368,1.5077,156.92,156.82,18.79181043]
[1749008243369,14.30339243,156.85,156.82,18.79181043]
[1749008244280,14.30339243,156.84,156.83,0.28432314]
[1749008244570,14.30339243,156.84,156.82,18.64964886]
[1749008244750,14.30339243,156.83,156.82,18.933972]
[1749008245250,14.30339243,156.84,156.82,18.933972]
[1749008245455,14.30339243,156.84,156.83,0.28432314]
[1749008249172,14.30339243,156.85,156.83,0.28432314]
[1749008249556,14.30339243,156.84,156.83,0.28432314]
[1749008251559,14.30339243,156.84,156.83,29.253972]
[1749008251966,14.30339243,156.84,156.83,28.96964886]
[1749008252169,14.30339243,156.84,156.83,68.32964886]
[1749008257576,14.30339243,156.84,156.83,10.32]
[1749008257978,14.30339243,156.84,156.83,49.68]
[1749008258570,14.30339243,156.84,156.83,10.32]
[1749008258883,14.30339243,156.84,156.83,49.66]
[1749008259089,14.30339243,156.84,156.83,10.32]
[1749008259396,14.30339243,156.84,156.83,49.66]
[1749008263377,34.1046,156.87,156.83,49.66]
[1749008263571,27.6069,156.87,156.83,49.66]
[1749008263767,14.30339243,156.84,156.83,49.66]
[1749008264077,14.30339243,156.84,156.83,68.30964886]
[1749008264764,3.64044024,156.9,156.83,68.593972]
[1749008264765,26.0,156.9,156.83,68.593972]
[1749008264966,14.30339243,156.84,156.83,68.593972]
[1749008265586,14.30339243,156.85,156.83,68.593972]
[1749008267696,14.30339243,156.86,156.83,68.593972]
[1749008267901,14.30339243,156.87,156.84,18.933972]
[1749008268106,10.7444903,156.95,156.84,18.933972]
[1749008268107,3.64821912,156.94,156.86,18.933972]
[1749008268401,3.64821912,156.94,156.87,39.34]
[1749008268402,14.30339243,156.9,156.87,39.34]
[1749008268616,14.30339243,156.9,156.88,18.933972]
[1749008268811,14.30339243,156.9,156.89,10.32]
[1749008275402,14.30339243,156.91,156.9,18.64964886]
[1749008275623,14.30339243,156.93,156.9,57.98964886]
[1749008275920,14.30339243,156.92,156.9,57.98964886]
[1749008276124,14.30339243,156.91,156.9,58.273972]
[1749008276691,14.30339243,156.91,156.9,57.98964886]
[1749008280900,14.30339243,156.91,156.89,10.32]
[1749008281102,1.5586,156.95,156.9,39.32]
[1749008282424,14.30339243,156.91,156.9,57.96964886]
[1749008290835,14.30339243,156.91,156.9,39.32]
[1749008291024,14.30339243,156.91,156.89,10.32]
[1749008291213,1.5586,156.95,156.9,39.3]
[1749008291416,14.30339243,156.91,156.9,57.94964886]
[1749008295331,14.30339243,156.92,156.91,18.64964886]
[1749008295811,26.0,156.98,156.91,18.64964886]
[1749008295812,14.30339243,156.93,156.91,18.64964886]
[1749008296931,14.30339243,156.93,156.92,28.94964886]
[1749008300620,26.0,156.98,156.92,28.94964886]
[1749008300820,14.30339243,156.93,156.92,28.94964886]
[1749008302320,26.0,156.98,156.92,28.94964886]
[1749008302639,14.30339243,156.95,156.93,18.64964886]
[1749008302815,14.30339243,156.95,156.94,57.94964886]
[1749008306731,1.6125,156.99,156.95,18.64964886]
[1749008307040,14.30339243,156.98,156.95,18.933972]
[1749008307244,7.8067,157.03,156.95,18.933972]
[1749008307245,14.30339243,156.99,156.96,0.28432314]
[1749008307420,7.8067,157.03,156.96,0.28432314]
[1749008307421,14.30339243,156.98,156.96,0.28432314]
[1749008308961,14.30339243,156.97,156.96,0.28432314]
[1749008309242,14.30339243,156.97,156.95,18.64964886]
[1749008311048,14.30339243,156.96,156.95,18.933972]
[1749008311634,14.30339243,156.96,156.95,39.28]
[1749008312034,14.30339243,156.96,156.92,10.3]
[1749008312241,1.5104,156.98,156.95,39.28]
[1749008312451,14.30339243,156.96,156.95,39.28]
[1749008312834,28.60678486,156.96,156.92,10.3]
[1749008313158,14.30339243,156.96,156.93,39.28]
[1749008313335,14.30339243,156.96,156.92,10.3]
[1749008313656,14.30339243,156.96,156.93,39.28]
[1749008314142,14.30339243,156.94,156.93,39.28]
[1749008315054,14.30339243,156.94,156.92,10.3]
[1749008315244,14.30339243,156.93,156.92,10.3]
[1749008315443,14.30339243,156.93,156.92,49.58]
[1749008315950,14.30339243,156.96,156.92,49.58]
[1749008316127,14.30339243,156.93,156.92,49.58]
[1749008316332,14.30339243,156.93,156.92,68.22964886]
[1749008316633,14.30339243,157.01,156.97,0.42648471]
[1749008316834,14.30339243,157.02,156.99,18.64964886]
[1749008317050,14.30339243,157.0,156.99,18.64964886]
[1749008320164,1.5443,157.06,156.99,18.64964886]
[1749008320362,14.30339243,157.0,156.99,18.64964886]
[1749008321662,14.30339243,157.01,156.99,18.64964886]
[1749008324443,14.30339243,157.0,156.99,18.64964886]
[1749008324669,14.30339243,157.01,156.99,18.64964886]
[1749008329373,14.30339243,157.03,156.99,18.64964886]
[1749008331415,14.30339243,157.02,156.99,18.64964886]
[1749008331570,14.30339243,157.0,156.99,18.64964886]
[1749008334553,14.30339243,157.0,156.99,57.90964886]
[1749008335650,1.5443,157.06,156.99,98.21304129]
[1749008335856,14.30339243,157.03,156.99,98.21304129]
[1749008336088,14.30339243,157.01,156.99,83.90964886]
[1749008336374,14.30339243,157.0,156.99,18.64964886]
[1749008336596,14.30339243,157.0,156.99,57.88964886]
[1749008341169,14.30339243,157.01,156.99,57.88964886]
[1749008342083,14.30339243,157.0,156.99,57.88964886]
[1749008342284,14.30339243,157.0,156.99,18.64964886]
[1749008342464,14.30339243,157.0,156.99,57.88964886]
[1749008342978,14.30339243,157.0,156.98,10.28]
[1749008343180,14.30339243,156.99,156.98,10.28]
[1749008343381,14.30339243,156.99,156.98,49.52]
[1749008343758,14.30339243,156.99,156.98,10.28]
[1749008343961,14.30339243,156.99,156.98,49.52]
[1749008344572,1.5277,157.01,156.98,49.52]
[1749008344765,14.30339243,156.99,156.98,49.52]
[1749008348275,1.6492,157.05,156.99,18.64964886]
[1749008348481,14.30339243,157.0,156.99,18.64964886]
[1749008349283,14.30339243,157.0,156.98,49.52]
[1749008349586,14.30339243,156.99,156.98,68.16964886]
[1749008349965,14.30339243,156.99,156.98,49.52]
[1749008363171,3.65247788,157.02,156.98,49.52]
[1749008363377,14.30339243,156.99,156.98,49.52]
[1749008366573,14.30339243,156.99,156.98,10.28]
[1749008366787,14.30339243,156.99,156.98,49.52]
[1749008367610,14.30339243,156.99,156.98,10.28]
[1749008367775,14.30339243,156.99,156.98,49.52]
[1749008368704,14.30339243,156.99,156.98,10.28]
[1749008368912,14.30339243,156.99,156.98,49.52]
[1749008370105,14.30339243,156.99,156.98,10.28]
[1749008370286,14.30339243,156.99,156.98,49.52]
[1749008372980,20.42570357,157.04,156.98,49.52]
[1749008373178,14.30339243,156.99,156.98,49.52]
[1749008376076,14.30339243,156.99,156.98,49.5576]
[1749008376896,26.0,157.03,156.98,49.5576]
[1749008377095,14.30339243,156.99,156.98,49.5576]
[1749008377290,26.0,157.03,156.98,49.5576]
[1749008377488,14.30339243,156.99,156.98,49.5576]
[1749008378178,26.0,157.03,156.98,49.5576]
[1749008378380,14.30339243,156.99,156.98,49.5576]
[1749008380113,14.30339243,156.99,156.98,49.5376]
[1749008381714,26.0,157.03,156.98,49.5376]
[1749008382000,14.30339243,156.99,156.98,49.5376]
[1749008383954,14.30339243,157.0,156.98,49.5376]
[1749008384099,14.30339243,157.01,156.98,49.5376]
[1749008384294,14.30339243,157.01,156.99,18.64964886]
[1749008384727,14.30339243,157.02,156.99,18.64964886]
[1749008393107,14.30339243,157.01,156.99,18.64964886]
[1749008393906,14.30339243,157.0,156.99,18.933972]
[1749008394916,14.30339243,157.0,156.99,18.64964886]
[1749008395112,14.30339243,157.0,156.99,57.84964886]
[1749008398515,14.30339243,157.01,156.99,57.84964886]
[1749008399039,1.6316,157.08,156.99,57.84964886]
[1749008399246,1.6316,157.08,157.0,0.42648471]
[1749008399247,14.30339243,157.04,157.0,0.42648471]
[1749008399716,14.30339243,157.04,157.02,0.28432314]
[1749008399917,14.30339243,157.04,157.03,57.84964886]
[1749008400115,32.615,157.1,157.03,57.84964886]
[1749008400319,14.30339243,157.07,157.05,18.64964886]
[1749008400943,14.30339243,157.06,157.05,18.64964886]
[1749008403646,14.30339243,157.06,157.04,10.24]
[1749008403843,14.30339243,157.05,157.04,28.88964886]
[1749008404624,14.30339243,157.06,157.04,28.88964886]
[1749008404929,15.85799243,157.12,157.04,28.88964886]
[1749008405241,14.30339243,157.06,157.04,28.88964886]
[1749008406237,14.30339243,157.06,157.05,18.64964886]
[1749008407725,14.30339243,157.06,157.04,28.88964886]
[1749008407928,14.30339243,157.05,157.04,28.88964886]
[1749008408243,15.85799243,157.12,157.04,28.88964886]
[1749008408440,14.30339243,157.07,157.05,0.28432314]
[1749008408746,15.85799243,157.12,157.05,19.07613357]
[1749008408747,1.5546,157.12,157.05,19.07613357]
[1749008408962,14.30339243,157.1,157.07,19.07613357]
[1749008409155,1.5836,157.16,157.1,0.28432314]
[1749008409371,4.55118343,157.2,157.1,0.28432314]
[1749008409372,14.30339243,157.13,157.12,18.64964886]
[1749008409523,14.30339243,157.13,157.11,10.24]
[1749008409722,14.30339243,157.12,157.11,28.88964886]
[1749008410744,41.88699243,157.2,157.11,28.88964886]
[1749008410944,14.30339243,157.12,157.11,28.88964886]
[1749008412165,14.30339243,157.13,157.12,18.64964886]
[1749008412459,27.5836,157.2,157.12,58.113972]
[1749008412662,14.30339243,157.15,157.12,58.113972]
[1749008413067,1.5836,157.2,157.13,0.14216157]
[1749008413247,14.30339243,157.16,157.13,0.14216157]
[1749008413565,14.30339243,157.15,157.13,0.14216157]
[1749008414237,14.30339243,157.14,157.12,18.64964886]
[1749008414442,15.88699243,157.2,157.13,39.16]
[1749008414672,14.30339243,157.14,157.13,39.16]
[1749008416170,15.88699243,157.2,157.14,18.64964886]
[1749008416478,14.30339243,157.15,157.14,18.64964886]
[1749008420668,14.30339243,157.15,157.14,39.16]
[1749008421865,6.37599231,157.24,157.15,18.64964886]
[1749008422054,14.30339243,157.19,157.15,18.64964886]
[1749008422751,14.30339243,157.18,157.15,18.64964886]
[1749008424176,1.5143,157.24,157.16,0.28432314]
[1749008424349,14.30339243,157.2,157.17,10.22]
[1749008425849,1.5143,157.24,157.18,18.64964886]
[1749008426050,14.30339243,157.21,157.19,39.14]
[1749008426849,14.30339243,157.2,157.19,57.78964886]
[1749008428266,14.30339243,157.21,157.19,57.78964886]
[1749008428756,14.30339243,157.2,157.19,57.78964886]
[1749008429661,14.30339243,157.2,157.19,39.14]
[1749008431485,14.30339243,157.2,157.17,28.86964886]
[1749008431663,1.5143,157.24,157.19,39.14]
[1749008431856,14.30339243,157.2,157.19,39.14]
[1749008432170,28.60678486,157.2,157.17,10.22]
[1749008432481,14.30339243,157.18,157.17,10.22]
[1749008432680,14.30339243,157.18,157.17,49.36]
[1749008433266,14.30339243,157.18,157.17,10.22]
[1749008433585,14.30339243,157.18,157.17,49.36]
[1749008434269,14.30339243,157.18,157.17,10.22]
[1749008434475,14.30339243,157.18,157.17,49.36]
[1749008434673,14.30339243,157.18,157.17,10.22]
[1749008435063,14.30339243,157.18,157.17,49.36]
[1749008435269,26.0,157.23,157.17,49.36]
[1749008435462,14.30339243,157.18,157.17,49.36]
[1749008439887,14.30339243,157.18,157.16,10.22]
[1749008440189,14.30339243,157.17,157.16,10.22]
[1749008441200,14.30339243,157.17,157.16,49.36]
[1749008446292,14.30339243,157.17,157.1,54.94]
[1749008446471,14.30339243,157.11,157.1,54.94]
[1749008446671,14.30339243,157.11,157.1,65.16]
[1749008446891,14.30339243,157.11,157.1,104.3]
[1749008448712,14.30339243,157.11,157.1,65.16]
[1749008448903,14.30339243,157.11,157.1,104.32]
[1749008449267,14.30339243,157.11,157.1,65.16]
[1749008449487,14.30339243,157.11,157.1,104.32]
[1749008453675,26.0,157.15,157.1,104.32]
[1749008454088,14.30339243,157.11,157.1,104.32]
[1749008455198,14.30339243,157.12,157.1,104.32]
[1749008455422,14.30339243,157.12,157.01,7.83496121]
[1749008455423,26.0,157.09,157.08,10.22]
[1749008455713,26.0,157.09,157.02,18.64964886]
[1749008456704,14.30339243,157.04,157.03,39.16]
[1749008456883,1.5476,157.11,157.03,39.16]
[1749008456884,14.30339243,157.06,157.04,0.28432314]
[1749008457591,14.30339243,157.05,157.03,39.16]
[1749008457791,28.60678486,157.04,157.01,7.83496121]
[1749008458107,26.0,157.1,157.02,39.24]
[1749008458308,14.30339243,157.03,156.99,18.64964886]
[1749008458483,14.30339243,157.02,157.01,18.64964886]
[1749008459907,14.30339243,157.03,157.02,0.28432314]
[1749008460297,14.30339243,157.03,157.01,18.64964886]
[1749008460607,14.30339243,157.02,157.01,18.933972]
[1749008461193,14.30339243,157.03,157.01,18.933972]
[1749008461392,14.30339243,157.05,157.02,0.42648471]
[1749008462884,14.30339243,157.04,157.02,0.28432314]
[1749008463212,14.30339243,157.03,157.02,0.28432314]
[1749008463411,1.5476,157.11,157.02,0.28432314]
[1749008463714,14.30339243,157.04,157.02,0.28432314]
[1749008464280,14.30339243,157.05,157.02,0.28432314]
[1749008464823,14.30339243,157.03,157.02,0.28432314]
[1749008464983,14.30339243,157.04,157.02,0.28432314]
[1749008465380,14.30339243,157.04,157.03,28.86964886]
[1749008467231,14.30339243,157.05,157.04,18.64964886]
[1749008467398,14.30339243,157.05,157.03,10.22]
[1749008468681,14.30339243,157.06,157.03,10.22]
[1749008468886,14.30339243,157.06,157.04,0.28432314]
[1749008469111,1.5476,157.11,157.05,57.82964886]
[1749008469327,14.30339243,157.06,157.05,57.82964886]
[1749008469692,14.30339243,157.06,157.05,39.18]
[1749008469925,14.30339243,157.06,157.05,39.16]
[1749008470694,14.30339243,157.06,157.03,10.22]
[1749008470899,1.5476,157.11,157.03,10.22]
[1749008470900,14.30339243,157.04,157.03,10.22]
[1749008471114,14.30339243,157.04,157.03,49.42]
[1749008472606,14.30339243,157.04,157.03,10.22]
[1749008472926,28.60678486,157.04,157.03,10.22]
[1749008473131,28.60678486,157.04,157.03,49.4]
[1749008473829,28.60678486,157.04,157.03,10.22]
[1749008473993,28.60678486,157.04,157.03,49.4]
[1749008475093,14.30339243,157.04,157.03,49.4]
[1749008480729,28.60678486,157.04,157.03,10.22]
[1749008481098,28.60678486,157.04,157.03,49.4]
[1749008489136,14.30339243,157.04,157.03,49.4]
[1749008509656,3.65585678,157.08,157.04,18.64964886]
[1749008509967,14.30339243,157.07,157.04,18.64964886]
[1749008510133,14.30339243,157.06,157.04,18.64964886]
[1749008511755,14.30339243,157.05,157.04,18.64964886]
[1749008512738,14.30339243,157.05,157.03,49.4]
[1749008512939,14.30339243,157.04,157.03,49.4]
[1749008513741,14.30339243,157.04,157.03,10.22]
[1749008513960,14.30339243,157.04,157.03,49.38]
[1749008518765,14.30339243,157.05,157.03,49.38]
[1749008519557,14.30339243,157.04,157.03,49.38]
[1749008520477,3.65766382,157.09,157.03,49.38]
[1749008520776,14.30339243,157.07,157.04,18.64964886]
[1749008521270,14.30339243,157.06,157.04,18.64964886]
[1749008522273,14.30339243,157.05,157.04,18.64964886]
[1749008522665,14.30339243,157.06,157.04,18.64964886]
[1749008523958,14.30339243,157.06,157.03,49.38]
[1749008524249,14.30339243,157.04,157.03,68.02964886]
[1749008524444,14.30339243,157.05,157.03,68.02964886]
[1749008525170,14.30339243,157.06,157.04,18.64964886]
[1749008526176,14.30339243,157.05,157.04,18.64964886]
[1749008528554,14.30339243,157.06,157.04,18.64964886]
[1749008528767,27.5476,157.11,157.04,18.64964886]
[1749008529073,14.30339243,157.07,157.04,18.64964886]
[1749008530267,14.30339243,157.06,157.04,18.64964886]
[1749008530671,14.30339243,157.07,157.04,18.64964886]
[1749008532578,14.30339243,157.06,157.05,10.22]
[1749008533250,27.5476,157.11,157.05,10.22]
[1749008533454,14.30339243,157.06,157.05,10.22]
[1749008541296,14.30339243,157.06,157.05,28.86964886]
[1749008541801,14.30339243,157.07,157.05,28.86964886]
[1749008542101,1.5476,157.11,157.06,18.64964886]
[1749008542305,1.6073,157.16,157.09,14.72987714]
[1749008542482,14.30339243,157.14,157.11,18.64964886]
[1749008542682,14.30339243,157.14,157.12,39.16]
[1749008543004,22.35179243,157.2,157.13,18.64964886]
[1749008543005,14.30339243,157.15,157.13,18.64964886]
[1749008543677,14.30339243,157.14,157.13,18.64964886]
[1749008546676,14.30339243,157.14,157.12,39.16]
[1749008546872,14.30339243,157.13,157.12,39.16]
[1749008547902,14.30339243,157.13,157.1,28.86964886]
[1749008548104,14.30339243,157.13,157.11,57.78964886]
[1749008553698,14.30339243,157.14,157.11,57.78964886]
[1749008553999,14.30339243,157.15,157.11,57.78964886]
[1749008556016,14.30339243,157.13,157.11,57.78964886]
[1749008556619,48.35179243,157.2,157.11,57.78964886]
[1749008556620,14.30339243,157.12,157.11,57.78964886]
[1749008560005,14.30339243,157.13,157.11,18.64964886]
[1749008560305,14.30339243,157.13,157.11,57.76964886]
[1749008561386,14.30339243,157.12,157.1,10.22]
[1749008561586,14.30339243,157.11,157.1,18.64964886]
[1749008561806,14.30339243,157.11,157.1,10.2]
[1749008562405,14.30339243,157.11,157.1,49.32]
[1749008564184,14.30339243,157.11,157.1,10.2]
[1749008564392,27.5744,157.14,157.1,49.32]
[1749008564719,14.30339243,157.11,157.1,49.32]
[1749008574207,14.30339243,157.11,157.1,67.96964886]
[1749008575914,14.30339243,157.11,157.1,49.32]
[1749008578294,14.30339243,157.11,157.08,0.28432314]
[1749008578601,14.30339243,157.11,157.09,49.32]
[1749008580415,14.30339243,157.1,157.09,67.96964886]
[1749008581995,14.30339243,157.11,157.09,67.96964886]
[1749008584596,14.30339243,157.11,157.1,49.32]
[1749008587610,26.0,157.15,157.1,49.32]
[1749008587831,14.30339243,157.11,157.1,49.32]
[1749008593128,9.11813005,157.11,157.1,49.32]
[1749008597835,26.0,157.15,157.1,49.32]
[1749008598058,9.11813005,157.11,157.1,49.32]
[1749008598360,9.11813005,157.11,157.1,10.2]
[1749008598557,9.11813005,157.11,157.1,49.3]
[1749008598965,9.11813005,157.11,157.1,10.2]
[1749008599134,9.11813005,157.11,157.1,49.3]
[1749008599939,9.11813005,157.11,157.1,10.2]
[1749008600146,9.11813005,157.11,157.1,49.3]
[1749008603844,9.11813005,157.11,157.1,10.2]
[1749008604041,12.77292022,157.11,157.06,54.94]
[1749008604254,3.65588132,157.1,157.07,49.3]
[1749008604456,9.11813005,157.08,157.07,49.3]
[1749008604640,9.11813005,157.08,157.07,10.2]
[1749008604840,9.11813005,157.08,157.07,49.3]
[1749008605064,12.77250264,157.08,157.07,49.3]
[1749008605370,17.91447447,157.08,157.07,49.3]